fUST/lending_fUST_20250306
["ID","MTS","AMOUNT","RATE_DAILY","PERIOD"]
[355478791,1741198256038,-500.0,0.00039178,9]
[355478792,1741198256047,-500.0,0.00039178,9]
[355478793,1741198256057,-500.0,0.00039178,9]
[355478794,1741198256066,-500.0,0.00039178,9]
[355478795,1741198256075,-500.0,0.00039178,9]
[355478796,1741198256084,-500.0,0.00039178,9]
[355478797,1741198256094,-500.0,0.00039178,9]
[355478798,1741198256104,-500.0,0.00039178,9]
[355478799,1741198256113,-500.0,0.00039178,9]
[355478800,1741198256123,-500.0,0.00039178,9]
[355478801,1741198256133,-500.0,0.00039178,9]
[355478802,1741198256142,-500.0,0.00039178,9]
[355478803,1741198256153,-500.0,0.00039178,9]
[355478804,1741198256162,-500.0,0.00039178,9]
[355478805,1741198256172,-500.0,0.00039178,9]
[355478806,1741198256181,-169.685,0.00039178,54]
[355478807,1741198256191,-500.0,0.00039178,9]
[355478808,1741198256200,-500.0,0.00039178,9]
[355478809,1741198256209,-938.23,0.00039178,9]
[355478810,1741198256218,-500.0,0.00039178,9]
[355478811,1741198256228,-500.0,0.00039178,9]
[355478812,1741198256237,-500.0,0.00039178,9]
[355478813,1741198256247,-763.18,0.00039178,9]
[355478814,1741198256256,-500.0,0.00039178,9]
[355478815,1741198256266,-500.0,0.00039178,9]
[355478816,1741198256275,-510.25,0.00039178,9]
[355478817,1741198256285,-500.0,0.00039178,9]
[355478818,1741198256295,-500.0,0.00039178,9]
[355478819,1741198256304,-500.0,0.00039178,9]
[355478820,1741198256314,-500.0,0.00039178,9]
[355478821,1741198256324,-534.8,0.00039178,9]
[355478822,1741198256334,-500.0,0.00039178,9]
[355478823,1741198256343,-500.0,0.00039178,9]
[355478824,1741198256352,-500.0,0.00039178,9]
[355478825,1741198256362,-500.0,0.00039178,9]
[355478826,1741198256373,-680.8,0.00039178,9]
[355478827,1741198256383,-599.83,0.00039178,9]
[355478828,1741198256392,-500.0,0.00039178,9]
[355478829,1741198256402,-514.5,0.00039178,9]
[355478830,1741198256412,-500.0,0.00039178,9]
[355478831,1741198256422,-500.0,0.00039178,9]
[355478832,1741198256431,-500.0,0.00039178,9]
[355478833,1741198256441,-516.88350948,0.00039178,9]
[355478834,1741198256450,-500.0,0.00039178,9]
[355478835,1741198256459,-500.0,0.00039178,9]
[355478836,1741198256469,-500.0,0.00039178,9]
[355478837,1741198256478,-500.0,0.00039178,9]
[355478838,1741198256488,-887.0,0.00039178,9]
[355478839,1741198256497,-500.0,0.00039178,9]
[355478840,1741198256507,-500.0,0.00039178,9]
[355478841,1741198256516,-500.0,0.00039178,9]
[355478842,1741198256525,-632.68,0.00039178,9]
[355478843,1741198256534,-500.0,0.00039178,9]
[355478844,1741198256543,-500.0,0.00039178,9]
[355478845,1741198256553,-500.0,0.00039178,9]
[355478846,1741198256563,-500.0,0.00039178,9]
[355478847,1741198256572,-531.78157518,0.00039178,9]
[355478848,1741198256582,-500.0,0.00039178,9]
[355478849,1741198256592,-500.0,0.00039178,9]
[355478850,1741198256603,-500.0,0.00039178,9]
[355478851,1741198256615,-500.0,0.00039178,9]
[355478852,1741198256626,-500.0,0.00039178,9]
[355478853,1741198256635,-500.0,0.00039178,9]
[355478854,1741198256647,-500.0,0.00039178,9]
[355478855,1741198256656,-500.0,0.00039178,9]
[355478856,1741198256666,-709.27,0.00039178,9]
[355478857,1741198256675,-725.22,0.00039178,9]
[355478858,1741198256686,-500.0,0.00039178,9]
[355478859,1741198256696,-500.0,0.00039178,9]
[355478860,1741198256705,-500.0,0.00039178,9]
[355478861,1741198256714,-500.0,0.00039178,9]
[355478862,1741198256724,-370.9,0.00039178,9]
[355478863,1741198256733,-500.0,0.00039178,9]
[355478864,1741198256743,-274.44098617,0.00039178,9]
[355478865,1741198256753,-500.0,0.00039178,9]
[355478866,1741198256763,-634.78,0.00039178,9]
[355478867,1741198256772,-500.0,0.00039178,9]
[355478868,1741198256782,-500.0,0.00039178,9]
[355478869,1741198256792,-500.0,0.00039178,9]
[355478870,1741198256801,-500.0,0.00039178,9]
[355478871,1741198256811,-500.0,0.00039178,9]
[355478872,1741198256822,-500.0,0.00039178,9]
[355478873,1741198256831,-500.0,0.00039178,9]
[355478874,1741198256841,-1052.86,0.00039178,9]
[355478875,1741198256850,-500.0,0.00039178,9]
[355478876,1741198256859,-939.44,0.00039178,9]
[355478877,1741198256868,-500.0,0.00039178,9]
[355478878,1741198256881,-872.64,0.00039178,9]
[355478879,1741198256890,-500.0,0.00039178,9]
[355478880,1741198256899,-500.0,0.00039178,9]
[355478881,1741198256907,-500.0,0.00039178,9]
[355478882,1741198256916,-1655.0,0.00039178,9]
[355478883,1741198256925,-500.0,0.00039178,9]
[355478884,1741198256934,-500.0,0.00039178,9]
[355478885,1741198256943,-647.18,0.00039178,9]
[355478886,1741198256953,-500.0,0.00039178,9]
[355478887,1741198256962,-500.0,0.00039178,9]
[355478888,1741198256972,-500.0,0.00039178,9]
[355478889,1741198256981,-508.0761205,0.00039178,9]
[355478890,1741198256991,-583.25,0.00039178,9]
[355478891,1741198257114,-500.0,0.00039178,9]
[355478892,1741198257145,-500.0,0.00039178,9]
[355478893,1741198257154,-500.0,0.00039178,9]
[355478894,1741198257164,-500.0,0.00039178,9]
[355478895,1741198257174,-500.0,0.00039178,9]
[355478896,1741198257183,-500.0,0.00039178,9]
[355478897,1741198257192,-529.67,0.00039178,9]
[355478898,1741198257203,-500.0,0.00039178,9]
[355478899,1741198257212,-500.0,0.00039178,9]
[355478900,1741198257222,-215.07005909,0.00039178,9]
[355478901,1741198257231,-957.17,0.00039178,9]
[355478902,1741198257241,-500.0,0.00039178,9]
[355478903,1741198257251,-798.05,0.00039178,9]
[355478904,1741198257260,-558.31,0.00039178,9]
[355478905,1741198257270,-500.0,0.00039178,9]
[355478906,1741198257279,-446.22822038,0.00039178,9]
[355478907,1741198257289,-192.28028561,0.00039178,9]
[355478908,1741198257299,-600.97,0.00039178,9]
[355478909,1741198257309,-511.02908351,0.00039178,9]
[355478910,1741198257319,-619.98,0.00039178,9]
[355478911,1741198257328,-500.0,0.00039178,9]
[355478912,1741198257337,-500.0,0.00039178,9]
[355478913,1741198257346,-500.0,0.00039178,9]
[355478914,1741198257356,-500.0,0.00039178,9]
[355478915,1741198257365,-500.0,0.00039178,9]
[355478916,1741198257376,-1120.54,0.00039178,9]
[355478917,1741198257386,-500.0,0.00039178,9]
[355478918,1741198257396,-514.38969211,0.00039178,9]
[355478919,1741198257405,-500.0,0.00039178,9]
[355478920,1741198257415,-500.0,0.00039178,9]
[355478921,1741198257424,-521.61308288,0.00039178,9]
[355478922,1741198257434,-591.35,0.00039178,9]
[355478923,1741198257444,-276.5531662,0.00039178,9]
[355478924,1741198257453,-500.0,0.00039178,9]
[355478925,1741198257463,-500.0,0.00039178,9]
[355478926,1741198257472,-5494.18,0.00039178,9]
[355478927,1741198257481,-514.1262304,0.00039178,9]
[355478928,1741198257490,-500.0,0.00039178,9]
[355478929,1741198257499,-7784.72,0.00039178,9]
[355478930,1741198257509,-2091.63,0.00039178,9]
[355478931,1741198257518,-700.61,0.00039178,9]
[355478932,1741198257528,-2052.02,0.00039178,9]
[355478933,1741198257537,-89210.48,0.00039178,7]
[355478934,1741198257547,-500.0,0.00039178,9]
[355478935,1741198257556,-500.0,0.00039178,9]
[355478936,1741198257566,-500.0,0.00039178,9]
[355478937,1741198257575,-500.0,0.00039178,9]
[355478938,1741198257585,-1188.58,0.00039178,9]
[355478939,1741198257596,-840.1,0.00039178,9]
[355478940,1741198257609,-500.0,0.00039178,9]
[355478941,1741198257619,-500.0,0.00039178,9]
[355478942,1741198257631,-500.0,0.00039178,9]
[355478943,1741198257642,-1455.61,0.00039178,9]
[355478944,1741198257651,-500.0,0.00039178,9]
[355478945,1741198257662,-3679.83,0.00039178,9]
[355478946,1741198257672,-150.0,0.00039178,2]
[355478947,1741198257684,-500.0,0.00039178,9]
[355478948,1741198257694,-511.18234583,0.00039178,9]
[355478949,1741198257703,-500.0,0.00039178,9]
[355478950,1741198257713,-500.0,0.00039178,9]
[355478951,1741198257723,-500.0,0.00039178,9]
[355478952,1741198257733,-520.83,0.00039178,9]
[355478953,1741198257742,-752.46,0.00039178,9]
[355478954,1741198257752,-500.0,0.00039178,9]
[355478955,1741198257762,-819.0,0.00039178,9]
[355478956,1741198257772,-619.33,0.00039178,9]
[355478957,1741198257782,-500.0,0.00039178,9]
[355478958,1741198257791,-500.0,0.00039178,9]
[355478959,1741198257801,-783.5,0.00039178,9]
[355478960,1741198257810,-500.0,0.00039178,9]
[355478961,1741198257820,-500.0,0.00039178,9]
[355478962,1741198257830,-727.09,0.00039178,9]
[355478963,1741198257840,-4006.43,0.00039178,9]
[355478964,1741198257849,-758.44,0.00039178,9]
[355478965,1741198257859,-1163.07,0.00039178,9]
[355478966,1741198257869,-1213.85,0.00039178,9]
[355478967,1741198257881,-500.0,0.00039178,9]
[355478968,1741198257891,-388.6113441,0.00039178,9]
[355478969,1741198257900,-975.73,0.00039178,9]
[355478970,1741198257909,-500.0,0.00039178,9]
[355478971,1741198257918,-500.0,0.00039178,9]
[355478972,1741198257928,-1668.8,0.00039178,9]
[355478973,1741198257938,-500.0,0.00039178,9]
[355478974,1741198257948,-500.0,0.00039178,9]
[355478975,1741198257957,-750.41,0.00039178,9]
[355478976,1741198257967,-500.0,0.00039178,9]
[355478977,1741198257976,-716.34,0.00039178,9]
[355478978,1741198257986,-500.0,0.00039178,9]
[355478979,1741198257995,-500.0,0.00039178,9]
[355478980,1741198258005,-500.0,0.00039178,9]
[355478981,1741198258015,-500.0,0.00039178,9]
[355478982,1741198258024,-500.0,0.00039178,9]
[355478983,1741198258034,-12795.82,0.00039178,9]
[355478984,1741198258043,-500.0,0.00039178,9]
[355478985,1741198258053,-500.0,0.00039178,9]
[355478986,1741198258062,-500.0,0.00039178,9]
[355478987,1741198258072,-500.0,0.00039178,9]
[355478988,1741198258081,-500.0,0.00039178,9]
[355478989,1741198258091,-500.0,0.00039178,9]
[355478990,1741198258101,-500.0,0.00039178,9]
[355478991,1741198258110,-10119.18,0.00039178,9]
[355478992,1741198258120,-2441.88,0.00039178,9]
[355478993,1741198258132,-524.27,0.00039178,9]
[355478994,1741198258143,-500.0,0.00039178,9]
[355478995,1741198258152,-500.0,0.00039178,9]
[355478996,1741198258161,-1356.54,0.00039178,9]
[355478997,1741198258171,-211.6756105,0.00039178,9]
[355478998,1741198258181,-500.0,0.00039178,9]
[355478999,1741198258190,-500.0,0.00039178,9]
[355479000,1741198258199,-500.0,0.00039178,9]
[355479001,1741198258208,-5315.05,0.00039178,9]
[355479002,1741198258218,-500.0,0.00039178,9]
[355479003,1741198258227,-500.0,0.00039178,9]
[355479004,1741198258236,-766.92,0.00039178,9]
[355479005,1741198258246,-500.0,0.00039178,9]
[355479006,1741198258255,-500.0,0.00039178,9]
[355479007,1741198258265,-1383.63,0.00039178,9]
[355479008,1741198258274,-500.0,0.00039178,9]
[355479009,1741198258284,-500.0,0.00039178,9]
[355479010,1741198258293,-500.0,0.00039178,9]
[355479011,1741198258302,-500.0,0.00039178,9]
[355479012,1741198258311,-1023.28,0.00039178,9]
[355479013,1741198258321,-1395.66,0.00039178,9]
[355479014,1741198258330,-1583.94,0.00039178,9]
[355479015,1741198258340,-500.0,0.00039178,9]
[355479016,1741198258350,-500.0,0.00039178,9]
[355479017,1741198258359,-500.0,0.00039178,9]
[355479018,1741198258368,-500.0,0.00039178,9]
[355479019,1741198258381,-1194.72,0.00039178,9]
[355479020,1741198258390,-500.0,0.00039178,9]
[355479021,1741198258400,-500.0,0.00039178,9]
[355479022,1741198258409,-591.07,0.00039178,9]
[355479023,1741198258419,-842.41,0.00039178,9]
[355479024,1741198258429,-698.6,0.00039178,9]
[355479025,1741198258438,-500.0,0.00039178,9]
[355479026,1741198258448,-500.0,0.00039178,9]
[355479027,1741198258457,-500.0,0.00039178,9]
[355479028,1741198258466,-1149.74,0.00039178,9]
[355479029,1741198258475,-500.0,0.00039178,9]
[355479030,1741198258484,-634.76096035,0.00039178,9]
[355479031,1741198258494,-500.0,0.00039178,9]
[355479032,1741198258503,-500.0,0.00039178,9]
[355479033,1741198258512,-500.0,0.00039178,9]
[355479034,1741198258522,-500.0,0.00039178,9]
[355479035,1741198258532,-1637.36,0.00039178,9]
[355479036,1741198258541,-500.0,0.00039178,9]
[355479037,1741198258552,-597.92,0.00039178,9]
[355479038,1741198258561,-626.52,0.00039178,9]
[355479039,1741198258570,-4657.77,0.00039178,9]
[355479040,1741198258579,-500.0,0.00039178,9]
[355479041,1741198258588,-1177.29,0.00039178,9]
[355479042,1741198258600,-500.0,0.00039178,9]
[355479043,1741198258612,-500.0,0.00039178,9]
[355479044,1741198258623,-500.0,0.00039178,9]
[355479045,1741198258633,-5173.81,0.00039178,9]
[355479046,1741198258645,-4975.94,0.00039178,9]
[355479047,1741198258654,-500.0,0.00039178,9]
[355479048,1741198258663,-500.0,0.00039178,9]
[355479049,1741198258672,-500.0,0.00039178,9]
[355479050,1741198258682,-500.0,0.00039178,9]
[355479051,1741198258691,-511.01697191,0.00039178,9]
[355479052,1741198258700,-3080.81,0.00039178,9]
[355479053,1741198258710,-500.0,0.00039178,9]
[355479054,1741198258720,-500.0,0.00039178,9]
[355479055,1741198258729,-500.0,0.00039178,9]
[355479056,1741198258738,-500.0,0.00039178,9]
[355479057,1741198258747,-500.0,0.00039178,9]
[355479058,1741198258757,-500.0,0.00039178,9]
[355479059,1741198258766,-500.0,0.00039178,9]
[355479060,1741198258775,-500.0,0.00039178,9]
[355479061,1741198258784,-500.0,0.00039178,9]
[355479062,1741198258793,-500.0,0.00039178,9]
[355479063,1741198258802,-500.0,0.00039178,9]
[355479064,1741198258812,-500.0,0.00039178,9]
[355479065,1741198258822,-1800.95,0.00039178,9]
[355479066,1741198258831,-200.0,0.000392,120]
[355479067,1741198258840,-893.1,0.000392,30]
[355479068,1741198258850,-500.0,0.00039205,9]
[355479069,1741198258859,-500.0,0.00039205,9]
[355479070,1741198258869,-250.0,0.00039221,5]
[355479071,1741198258880,-500.0,0.00039233,9]
[355479072,1741198258889,-500.0,0.00039233,9]
[355479073,1741198258899,-500.0,0.0003926,9]
[355479074,1741198258908,-500.0,0.0003926,9]
[355479075,1741198258917,-800.0,0.00039267,7]
[355479076,1741198258927,-500.0,0.00039288,9]
[355479077,1741198258936,-500.0,0.00039288,9]
[355479078,1741198258945,-500.0,0.00039315,9]
[355479079,1741198258954,-500.0,0.00039315,9]
[355479080,1741198258964,-500.0,0.00039342,9]
[355479081,1741198258973,-500.0,0.00039342,9]
[355479082,1741198258983,-540.36148438,0.0003937,9]
[355479083,1741198258992,-930.04702194,0.0003937,9]
[355479084,1741198259002,-808.60314733,0.00039427,7]
[355479085,1741198259012,-500.0,0.00039452,9]
[355479086,1741198259022,-500.0,0.00039452,9]
[355479087,1741198259032,-500.0,0.00039452,9]
[355479088,1741198259042,-500.0,0.00039452,9]
[355479089,1741198259051,-500.0,0.00039452,9]
[355479090,1741198259061,-500.0,0.00039452,9]
[355479091,1741198259070,-500.0,0.00039452,9]
[355479092,1741198259079,-500.0,0.00039452,9]
[355479093,1741198259089,-500.0,0.00039452,9]
[355479094,1741198259099,-500.0,0.00039452,9]
[355479095,1741198259108,-500.0,0.00039452,9]
[355479096,1741198259117,-500.0,0.00039452,9]
[355479097,1741198259130,-500.0,0.00039452,9]
[355479098,1741198259140,-500.0,0.00039452,9]
[355479099,1741198259149,-500.0,0.00039452,9]
[355479100,1741198259159,-500.0,0.00039452,9]
[355479101,1741198259168,-938.23,0.00039452,9]
[355479102,1741198259178,-500.0,0.00039452,9]
[355479103,1741198259187,-500.0,0.00039452,9]
[355479104,1741198259197,-500.0,0.00039452,9]
[355479105,1741198259206,-763.18,0.00039452,9]
[355479106,1741198259216,-500.0,0.00039452,9]
[355479107,1741198259226,-500.0,0.00039452,9]
[355479108,1741198259235,-510.25,0.00039452,9]
[355479109,1741198259244,-500.0,0.00039452,9]
[355479110,1741198259254,-222.93294545,0.00039452,9]
[355479111,1741198259263,-500.0,0.00039452,9]
[355479112,1741198259272,-500.0,0.00039452,9]
[355479113,1741198259282,-534.8,0.00039452,9]
[355479114,1741198259292,-500.0,0.00039452,9]
[355479115,1741198259301,-500.0,0.00039452,9]
[355479116,1741198259311,-566.59448636,0.00039452,9]
[355479117,1741198259320,-680.8,0.00039452,9]
[355479118,1741198259331,-599.83,0.00039452,9]
[355479119,1741198259341,-515.50935586,0.00039452,9]
[355479120,1741198259350,-514.5,0.00039452,9]
[355479121,1741198259360,-500.0,0.00039452,9]
[355479122,1741198259370,-500.0,0.00039452,9]
[355479123,1741198259382,-500.0,0.00039452,9]
[355479124,1741198259392,-500.0,0.00039452,9]
[355479125,1741198259401,-502.47414094,0.00039452,9]
[355479126,1741198259410,-290.5669836,0.00039452,9]
[355479127,1741198259420,-887.0,0.00039452,9]
[355479128,1741198259429,-500.0,0.00039452,9]
[355479129,1741198259439,-500.0,0.00039452,9]
[355479130,1741198259448,-500.0,0.00039452,9]
[355479131,1741198259458,-632.68,0.00039452,9]
[355479132,1741198259467,-500.0,0.00039452,9]
[355479133,1741198259477,-500.0,0.00039452,9]
[355479134,1741198259487,-500.0,0.00039452,9]
[355479135,1741198259496,-500.0,0.00039452,9]
[355479136,1741198259505,-500.0,0.00039452,9]
[355479137,1741198259515,-500.0,0.00039452,9]
[355479138,1741198259559,-500.0,0.00039452,9]
[355479139,1741198259570,-500.0,0.00039452,9]
[355479140,1741198259579,-709.27,0.00039452,9]
[355479141,1741198259589,-725.22,0.00039452,9]
[355479142,1741198259600,-500.0,0.00039452,9]
[355479143,1741198259612,-500.0,0.00039452,9]
[355479144,1741198259622,-272.68,0.00039452,9]
[355479145,1741198259632,-500.0,0.00039452,9]
[355479146,1741198259641,-500.0,0.00039452,9]
[355479147,1741198259651,-634.78,0.00039452,9]
[355479148,1741198259660,-500.0,0.00039452,9]
[355479149,1741198259670,-500.0,0.00039452,9]
[355479150,1741198259680,-500.0,0.00039452,9]
[355479151,1741198259690,-500.0,0.00039452,9]
[355479152,1741198259700,-500.0,0.00039452,9]
[355479153,1741198259709,-500.0,0.00039452,9]
[355479154,1741198259719,-500.0,0.00039452,9]
[355479155,1741198259728,-1052.86,0.00039452,9]
[355479156,1741198259738,-500.0,0.00039452,9]
[355479157,1741198259747,-939.44,0.00039452,9]
[355479158,1741198259756,-500.0,0.00039452,9]
[355479159,1741198259767,-872.64,0.00039452,9]
[355479160,1741198259776,-500.0,0.00039452,9]
[355479161,1741198259785,-500.0,0.00039452,9]
[355479162,1741198259794,-500.0,0.00039452,9]
[355479163,1741198259802,-1655.0,0.00039452,9]
[355479164,1741198259812,-500.0,0.00039452,9]
[355479165,1741198259821,-500.0,0.00039452,9]
[355479166,1741198259830,-647.18,0.00039452,9]
[355479167,1741198259839,-500.0,0.00039452,9]
[355479168,1741198259847,-500.0,0.00039452,9]
[355479169,1741198259856,-583.25,0.00039452,9]
[355479170,1741198259865,-500.0,0.00039452,9]
[355479171,1741198259875,-500.0,0.00039452,9]
[355479172,1741198259884,-314.60856421,0.00039452,9]
[355479173,1741198259892,-500.0,0.00039452,9]
[355479174,1741198259900,-500.0,0.00039452,9]
[355479175,1741198259909,-500.0,0.00039452,9]
[355479176,1741198259918,-529.67,0.00039452,9]
[355479177,1741198259928,-500.0,0.00039452,9]
[355479178,1741198259937,-500.0,0.00039452,9]
[355479179,1741198259946,-957.17,0.00039452,9]
[355479180,1741198259955,-500.0,0.00039452,9]
[355479181,1741198259964,-798.05,0.00039452,9]
[355479182,1741198259973,-558.31,0.00039452,9]
[355479183,1741198259982,-500.0,0.00039452,9]
[355479184,1741198259990,-600.97,0.00039452,9]
[355479185,1741198259999,-619.98,0.00039452,9]
[355479186,1741198260008,-500.0,0.00039452,9]
[355479187,1741198260017,-500.0,0.00039452,9]
[355479188,1741198260026,-500.0,0.00039452,9]
[355479189,1741198260036,-500.0,0.00039452,9]
[355479190,1741198260046,-500.0,0.00039452,9]
[355479191,1741198260055,-1120.54,0.00039452,9]
[355479192,1741198260065,-500.0,0.00039452,9]
[355479193,1741198260074,-500.0,0.00039452,9]
[355479194,1741198260083,-500.0,0.00039452,9]
[355479195,1741198260092,-591.35,0.00039452,9]
[355479196,1741198260101,-500.0,0.00039452,9]
[355479197,1741198260110,-500.0,0.00039452,9]
[355479198,1741198260119,-5494.18,0.00039452,9]
[355479199,1741198260131,-500.0,0.00039452,9]
[355479200,1741198260140,-7784.72,0.00039452,9]
[355479201,1741198260150,-2091.63,0.00039452,9]
[355479202,1741198260159,-700.61,0.00039452,9]
[355479203,1741198260168,-2052.02,0.00039452,9]
[355479204,1741198260178,-47689.80091436,0.00039452,7]
[355479205,1741198260338,-293.51800001,0.00038373,5]
[355479206,1741198260348,-41520.67908564,0.00039452,7]
[355479207,1741198260357,-500.0,0.00039452,9]
[355479208,1741198260366,-500.0,0.00039452,9]
[355479209,1741198260377,-500.0,0.00039452,9]
[355479210,1741198260386,-500.0,0.00039452,9]
[355479211,1741198260395,-1188.58,0.00039452,9]
[355479212,1741198260404,-840.1,0.00039452,9]
[355479213,1741198260414,-500.0,0.00039452,9]
[355479214,1741198260423,-500.0,0.00039452,9]
[355479215,1741198260432,-500.0,0.00039452,9]
[355479216,1741198260441,-1455.61,0.00039452,9]
[355479217,1741198260451,-500.0,0.00039452,9]
[355479218,1741198260460,-3679.83,0.00039452,9]
[355479219,1741198260469,-150.0,0.00039452,2]
[355479220,1741198260478,-500.0,0.00039452,9]
[355479221,1741198260488,-500.0,0.00039452,9]
[355479222,1741198260497,-500.0,0.00039452,9]
[355479223,1741198260507,-500.0,0.00039452,9]
[355479224,1741198260516,-520.83,0.00039452,9]
[355479225,1741198260525,-500.0,0.00039452,9]
[355479226,1741198260535,-752.46,0.00039452,9]
[355479227,1741198260544,-819.0,0.00039452,9]
[355479228,1741198260553,-619.33,0.00039452,9]
[355479229,1741198260562,-500.0,0.00039452,9]
[355479230,1741198260571,-500.0,0.00039452,9]
[355479231,1741198260581,-783.5,0.00039452,9]
[355479232,1741198260590,-500.0,0.00039452,9]
[355479233,1741198260603,-500.0,0.00039452,9]
[355479234,1741198260612,-727.09,0.00039452,9]
[355479235,1741198260622,-4006.43,0.00039452,9]
[355479236,1741198260634,-758.44,0.00039452,9]
[355479237,1741198260644,-1163.07,0.00039452,9]
[355479238,1741198260653,-1213.85,0.00039452,9]
[355479239,1741198260663,-500.0,0.00039452,9]
[355479240,1741198260673,-975.73,0.00039452,9]
[355479241,1741198260684,-500.0,0.00039452,9]
[355479242,1741198260693,-222.91349804,0.00039452,9]
[355479243,1741198260703,-1668.8,0.00039452,9]
[355479244,1741198260713,-500.0,0.00039452,9]
[355479245,1741198260723,-500.0,0.00039452,9]
[355479246,1741198260732,-750.41,0.00039452,9]
[355479247,1741198260741,-500.0,0.00039452,9]
[355479248,1741198260751,-716.34,0.00039452,9]
[355479249,1741198260760,-500.0,0.00039452,9]
[355479250,1741198260770,-500.0,0.00039452,9]
[355479251,1741198260779,-458.31627829,0.00039452,9]
[355479252,1741198260789,-500.0,0.00039452,9]
[355479253,1741198260799,-500.0,0.00039452,9]
[355479254,1741198260808,-12795.82,0.00039452,9]
[355479255,1741198260817,-430.32605532,0.00039452,9]
[355479256,1741198260826,-500.0,0.00039452,9]
[355479257,1741198260836,-500.0,0.00039452,9]
[355479258,1741198260846,-500.0,0.00039452,9]
[355479259,1741198260856,-500.0,0.00039452,9]
[355479260,1741198260865,-500.0,0.00039452,9]
[355479261,1741198260876,-10119.18,0.00039452,9]
[355479262,1741198260886,-2441.88,0.00039452,9]
[355479263,1741198260895,-524.27,0.00039452,9]
[355479264,1741198260904,-500.0,0.00039452,9]
[355479265,1741198260914,-500.0,0.00039452,9]
[355479266,1741198260925,-1356.54,0.00039452,9]
[355479267,1741198260934,-500.0,0.00039452,9]
[355479268,1741198260943,-500.0,0.00039452,9]
[355479269,1741198260953,-500.0,0.00039452,9]
[355479270,1741198260963,-5315.05,0.00039452,9]
[355479271,1741198260972,-500.0,0.00039452,9]
[355479272,1741198260982,-500.0,0.00039452,9]
[355479273,1741198260991,-766.92,0.00039452,9]
[355479274,1741198261000,-500.0,0.00039452,9]
[355479275,1741198261009,-500.0,0.00039452,9]
[355479276,1741198261019,-1383.63,0.00039452,9]
[355479277,1741198261029,-500.0,0.00039452,9]
[355479278,1741198261038,-500.0,0.00039452,9]
[355479279,1741198261047,-500.0,0.00039452,9]
[355479280,1741198261057,-500.0,0.00039452,9]
[355479281,1741198261066,-1023.28,0.00039452,9]
[355479282,1741198261075,-1395.66,0.00039452,9]
[355479283,1741198261084,-1583.94,0.00039452,9]
[355479284,1741198261093,-500.0,0.00039452,9]
[355479285,1741198261103,-500.0,0.00039452,9]
[355479286,1741198261112,-500.0,0.00039452,9]
[355479287,1741198261121,-500.0,0.00039452,9]
[355479288,1741198261133,-1194.72,0.00039452,9]
[355479289,1741198261143,-500.0,0.00039452,9]
[355479290,1741198261152,-500.0,0.00039452,9]